bitfinex/quotes_ETHUSD_20220117
["timestamp","ask_amount","ask_price","bid_price","bid_amount"]
[1642440962538,6.53584345,3216.0,3215.9,3.1]
[1642440962737,1.3332289,3216.0,3215.9,3.1]
[1642440963984,2.82063406,3216.0,3215.9,3.1]
[1642440966591,2.82063406,3216.0,3215.9,3.05]
[1642440968240,3.12063406,3216.0,3215.9,3.05]
[1642440970347,2.82063406,3216.0,3215.9,3.05]
[1642440971189,0.00113685,3216.0,3215.9,7.02320966]
[1642440971385,0.00113685,3216.0,3215.9,16.02320966]
[1642440971584,0.00113685,3216.0,3215.9,12.9417]
[1642440972485,0.00113685,3216.0,3215.9,14.2046593]
[1642440973287,0.00113685,3216.0,3215.9,19.9536593]
[1642440973485,0.00113685,3216.0,3215.9,14.6536593]
[1642440973686,0.00113685,3216.0,3215.9,15.6536593]
[1642440973886,1.55693895,3216.2,3216.1,0.77716]
[1642440974086,1.55693895,3216.2,3216.1,5.10759675]
[1642440974287,1.5580758,3216.2,3216.1,5.40759675]
[1642440975130,1.5580758,3216.2,3216.1,4.40759675]
[1642440975329,1.5580758,3216.2,3216.1,1.52616]
[1642440976436,1.5580758,3216.2,3216.1,0.749]
[1642440976636,1.5580758,3216.2,3216.1,0.449]
[1642440978690,1.5580758,3216.2,3215.9,3.35]
[1642440980389,1.5580758,3216.2,3215.9,3.05]
[1642440981590,1.8580758,3216.2,3215.9,3.05]
[1642440981990,2.8580758,3216.2,3215.9,3.05]
[1642440982730,1.47813057,3216.1,3215.9,3.05]
[1642440983133,5.13894876,3216.1,3215.9,3.05]
[1642440983839,2.66081819,3216.1,3215.9,3.05]
[1642440984036,2.66081819,3216.1,3215.9,3.35]
[1642440984037,2.61081819,3216.1,3215.9,3.35]
[1642440984636,1.5580758,3216.2,3215.9,3.35]
[1642440984837,1.5580758,3216.2,3215.9,3.05]
[1642440985237,1.5580758,3216.2,3216.1,1.35980033]
[1642440985837,1.5580758,3216.2,3216.1,1.65980033]
[1642440987308,1.5580758,3216.2,3216.1,11.92550033]
[1642440987713,1.5580758,3216.2,3216.1,13.17338026]
[1642440988210,1.5580758,3216.2,3216.1,8.92338026]
[1642440988410,1.5580758,3216.2,3216.1,11.82041129]
[1642440988610,1.5580758,3216.2,3216.1,12.82041129]
[1642440988812,1.5580758,3216.2,3216.1,8.92338026]
[1642440989011,1.5580758,3216.2,3216.1,11.83236098]
[1642440989312,1.5580758,3216.2,3216.1,9.92338026]
[1642440989513,1.5580758,3216.2,3216.1,8.66378026]
[1642440989715,9.5580758,3216.2,3216.0,0.3169]
[1642440989938,9.5580758,3216.2,3215.9,3.05]
[1642440989939,0.01240028,3216.1,3215.9,3.05]
[1642440990139,5.76299163,3216.0,3215.9,3.05]
[1642440990538,6.76299163,3216.0,3215.9,3.05]
[1642440990743,0.01299163,3216.0,3215.9,3.05]
[1642440990942,0.01299163,3216.0,3215.9,3.85350817]
[1642440992147,9.71299163,3216.0,3215.9,3.05]
[1642440992952,1.37874818,3216.0,3215.9,3.05]
[1642440993149,8.62874818,3216.0,3215.9,3.05]
[1642440993350,9.95426272,3216.0,3215.9,3.05]
[1642440994089,2.70426272,3216.0,3215.9,3.05]
[1642440994788,1.33850617,3216.0,3215.9,3.05]
[1642440996189,8.13850617,3216.0,3215.9,3.05]
[1642440996391,2.6355658,3216.2,3215.9,3.05]
[1642440996590,2.6355658,3216.2,3216.0,0.05241712]
[1642440996790,3.95929507,3216.2,3215.9,3.05]
[1642440997448,2.6355658,3216.2,3215.9,3.05]
[1642440998049,3.90026767,3216.2,3215.9,3.05]
[1642440998542,5.40078699,3216.2,3215.9,3.05]
[1642440998945,5.10078699,3216.2,3215.9,3.05]
[1642440999145,3.60026767,3216.2,3215.9,3.05]
[1642440999345,3.60026767,3216.2,3216.0,0.05251376]
[1642440999745,3.60026767,3216.2,3215.9,3.05]
[1642441000346,2.3355658,3216.2,3215.9,3.05]
[1642441001992,0.3,3216.0,3215.9,3.05]
[1642441002393,20.41205742,3216.0,3215.0,0.82]
[1642441002593,0.01211344,3215.3,3215.0,0.82]
[1642441002794,12.45,3215.0,3214.7,1.59147018]
[1642441002993,12.45,3215.0,3214.4,2.38720527]
[1642441002994,6.8,3214.7,3214.4,2.38720527]
[1642441003200,1.30074175,3214.7,3214.4,2.38720527]
[1642441003694,2.07869175,3214.7,3214.5,0.05350283]
[1642441003896,0.77795,3214.7,3214.4,2.38720527]
[1642441004096,0.77795,3214.7,3214.6,0.00284212]
[1642441004697,0.77795,3214.7,3214.5,0.00341054]
[1642441005137,1.2268885,3214.9,3214.5,0.00341054]
[1642441005535,1.5268885,3214.9,3214.5,0.00341054]
[1642441005741,1.5268885,3214.9,3214.5,3.10341054]
[1642441005936,3.0824385,3214.9,3214.5,3.10341054]
[1642441006337,1.36484469,3214.7,3214.5,3.10341054]
[1642441006739,1.66484469,3214.7,3214.5,3.10341054]
[1642441007340,0.3,3214.7,3214.5,3.10341054]
[1642441007540,2.07785,3214.8,3214.5,3.10341054]
[1642441007942,1.07785,3214.8,3214.5,3.10341054]
[1642441008143,0.77777,3214.7,3214.5,3.10341054]
[1642441008347,1.07777,3214.7,3214.5,3.10341054]
[1642441009391,0.3,3214.9,3214.6,0.04896743]
[1642441009589,1.55536,3215.2,3214.6,0.04896743]
[1642441009590,1.55536,3215.2,3214.6,3.00900658]
[1642441009791,3.9741,3215.5,3214.7,0.00227369]
[1642441009991,1.15161537,3215.8,3214.7,0.00227369]
[1642441010193,1.15161537,3215.8,3214.7,6.64137369]
[1642441010194,0.00170527,3215.4,3214.7,6.64137369]
[1642441010394,1.1351862,3215.1,3214.7,0.00227369]
[1642441010594,1.1351862,3215.1,3214.8,0.00170527]
[1642441011000,1.4351862,3215.1,3214.8,0.00170527]
[1642441011395,1.12642959,3215.0,3214.8,0.00170527]
[1642441011594,2.12642959,3215.0,3214.8,0.00170527]
[1642441012442,2.12642959,3215.0,3214.5,3.1]
[1642441012443,5.42788,3214.9,3214.5,3.1]
[1642441012642,1.27840801,3214.7,3214.6,0.00113685]
[1642441013040,1.57840801,3214.7,3214.6,0.00113685]
[1642441013844,3.4396283,3214.9,3214.6,0.00113685]
[1642441014846,0.3,3214.8,3214.6,0.00113685]
[1642441015046,1.3,3214.8,3214.6,0.00113685]
[1642441017286,0.3,3214.8,3214.6,0.00113685]
[1642441018089,1.3,3214.8,3214.6,0.00113685]
[1642441019092,5.62291252,3214.9,3214.6,0.00113685]
[1642441019294,5.62291252,3214.9,3214.7,0.09511579]
[1642441019493,4.84508252,3214.9,3214.6,0.00113685]
[1642441019940,4.84508252,3214.9,3214.6,0.0473384]
[1642441020135,4.84508252,3214.9,3214.6,0.00113685]
[1642441020335,3.4396283,3214.9,3214.6,0.00113685]
[1642441020534,3.4396283,3214.9,3214.7,0.08512653]
[1642441020735,2.6617483,3214.9,3214.6,0.00113685]
[1642441020934,2.6617483,3214.9,3214.6,2.89646196]
[1642441021136,2.6617483,3214.9,3214.6,0.00113685]
[1642441021537,2.6617483,3214.9,3214.8,10.29866374]
[1642441021733,2.6617483,3214.9,3214.8,8.69866374]
[1642441022134,2.6617483,3214.9,3214.8,8.99866374]
[1642441022338,2.6617483,3214.9,3214.8,8.69866374]
[1642441023438,2.6617483,3214.9,3214.8,8.99866374]
[1642441023685,2.6617483,3214.9,3214.8,11.93247147]
[1642441023889,2.6617483,3214.9,3214.8,19.18247147]
[1642441024092,2.6617483,3214.9,3214.8,20.18247147]
[1642441024290,0.30860368,3215.0,3214.9,20.1]
[1642441024492,3.4036845,3215.7,3215.3,15.35]
[1642441024688,3.4036845,3215.7,3215.3,16.75764325]
[1642441024890,3.4036845,3215.7,3215.4,1.449]
[1642441024891,8.45e-05,3215.7,3215.4,1.449]
[1642441025289,3.9219077,3215.9,3215.4,1.449]
[1642441025693,8.45e-05,3216.1,3215.4,1.449]
[1642441025694,0.00454738,3215.8,3215.4,1.449]
[1642441025892,0.00454738,3215.8,3215.5,1.23720434]
[1642441026093,8.45e-05,3216.1,3215.5,1.23720434]
[1642441026094,0.00397896,3215.7,3215.6,13.149]
[1642441026293,0.00397896,3215.7,3215.6,0.449]
[1642441026697,0.00397896,3215.7,3215.2,0.449]
[1642441027106,1.55502,3216.0,3215.2,0.449]
[1642441027107,0.00341054,3215.6,3215.2,0.449]
[1642441027537,1.11137469,3215.4,3214.8,5.97915]
[1642441027753,1.11137469,3215.4,3214.8,0.449]
[1642441027943,0.00170527,3215.3,3214.8,0.449]
[1642441028142,0.00170527,3215.3,3214.6,0.00113685]
[1642441028343,0.00113684,3215.2,3214.6,0.00113685]
[1642441028544,0.00113684,3215.2,3214.6,0.04699093]
[1642441028746,0.00170527,3215.3,3214.6,1.50821893]
[1642441028944,0.00170527,3215.3,3214.7,0.00170527]
[1642441029143,0.00113684,3215.2,3214.7,0.00170527]
[1642441029545,0.00284211,3215.5,3214.7,0.00170527]
[1642441029845,0.00227369,3215.4,3214.7,0.00170527]
[1642441030045,0.00227369,3215.4,3214.8,0.7775171]
[1642441030245,0.00170527,3215.3,3214.8,0.7775171]
[1642441030447,0.00170527,3215.3,3214.8,1.0775171]
[1642441030646,0.00113684,3215.2,3214.9,0.05456704]
[1642441030846,0.00113684,3215.2,3214.8,1.0775171]
[1642441031050,1.30747739,3215.2,3214.7,0.00170527]
[1642441031290,1.60747739,3215.2,3214.7,0.00170527]
[1642441031489,1.60747739,3215.2,3214.5,0.00284212]
[1642441031691,3.16283739,3215.2,3214.5,0.00284212]
[1642441032100,1.37383649,3214.6,3214.5,0.00284212]
[1642441032697,2.15168649,3214.6,3214.4,0.00341054]
[1642441032895,2.15168649,3214.6,3214.0,2.3933467]
[1642441033294,2.15168649,3214.6,3214.1,0.00511581]
[1642441033496,1.37383649,3214.6,3214.2,0.05928298]
[1642441033695,2.75325,3215.1,3214.1,0.00511581]
[1642441033896,2.75325,3215.1,3214.3,0.00397897]
[1642441034098,0.3,3215.0,3214.1,0.00511581]
[1642441034296,1.3,3215.0,3214.1,0.00511581]
[1642441034502,0.7777,3214.9,3214.1,0.00511581]
[1642441035139,0.7777,3214.9,3214.1,1.60084896]
[1642441035539,1.2493938,3214.8,3214.2,0.00454739]
[1642441035839,2.8050138,3214.8,3214.2,0.00454739]
[1642441036239,4.33168854,3214.8,3214.2,0.00454739]
[1642441036442,5.10950854,3214.8,3214.2,0.00454739]
[1642441037647,0.7778,3214.7,3214.2,0.00454739]
[1642441038044,1.7778,3214.7,3214.2,0.00454739]
[1642441038248,2.0778,3214.7,3214.2,0.00454739]
[1642441038918,1.3404731,3214.3,3214.2,0.00454739]
[1642441039120,2.74190788,3214.3,3214.2,0.00454739]
[1642441039321,0.77788,3214.4,3214.2,0.00454739]
[1642441039523,0.77788,3214.4,3214.2,0.06059839]
[1642441039726,0.77788,3214.4,3214.2,0.00454739]
[1642441040223,0.77771,3214.7,3214.2,0.00454739]
[1642441040422,2.21899292,3214.7,3214.2,0.00454739]
[1642441040622,2.51899292,3214.7,3214.2,0.00454739]
[1642441042124,1.0,3214.6,3214.2,0.00454739]
[1642441042538,2.51899292,3214.7,3214.2,0.00454739]
[1642441043140,1.33249588,3214.3,3214.2,0.00454739]
[1642441043442,17.35,3214.2,3213.5,0.91648459]
[1642441043643,17.35,3214.2,3213.2,1.59573315]
[1642441043644,0.01274946,3213.6,3213.2,1.59573315]
[1642441043843,0.7958,3213.6,3213.2,1.59573315]
[1642441044046,0.7958,3213.6,3213.2,2.56950497]
[1642441044447,0.7958,3213.6,3213.3,1.53906492]
[1642441044852,1.5559,3214.1,3213.4,0.00454739]
[1642441045050,1.5559,3214.1,3213.7,1.41561411]
[1642441045251,0.449,3214.7,3213.8,3.19219538]
[1642441045252,5.51049,3214.6,3213.8,3.19219538]
[1642441045450,0.449,3214.7,3213.8,3.24699748]
[1642441045451,0.77775,3214.7,3213.8,3.24699748]
[1642441045650,0.00170527,3214.5,3213.9,0.00170527]
[1642441045951,1.58502187,3215.2,3213.9,0.00170527]
[1642441045952,0.00113685,3214.4,3213.9,0.00170527]
[1642441046237,0.00511581,3215.1,3213.9,0.00170527]
[1642441046437,0.00511581,3215.1,3214.3,1.51983574]
[1642441046639,1.58502187,3215.2,3213.9,0.00170527]
[1642441046640,0.77767,3214.9,3213.9,1.21070527]
[1642441046840,0.77767,3214.9,3214.0,2.98447117]
[1642441047139,0.00341054,3214.8,3214.0,2.95481398]
[1642441047340,0.00341054,3214.8,3214.0,0.00113685]
[1642441047541,1.55547,3215.0,3214.0,0.00113685]
[1642441047542,0.00284212,3214.7,3214.0,0.00113685]
[1642441047738,0.00284212,3214.7,3214.0,2.9472516]
[1642441047938,0.00227369,3214.6,3214.0,1.28723494]
[1642441048142,0.00227369,3214.6,3214.3,1.11075884]
[1642441048347,0.77777,3214.9,3214.3,1.11075884]
[1642441048348,0.00170527,3214.5,3214.3,1.11075884]
[1642441048541,0.00170527,3214.5,3214.4,20.1]
[1642441048740,2.66170822,3214.9,3214.5,0.04875545]
[1642441048940,2.66170822,3214.9,3214.4,17.45]
[1642441049140,2.66170822,3214.9,3214.5,1.0]
[1642441049141,0.00341054,3214.8,3214.5,1.0]
[1642441049340,0.00341054,3214.8,3214.5,1.36542419]
[1642441049540,0.00284212,3214.7,3214.5,1.36542419]
[1642441049949,2.66170822,3214.9,3214.6,18.32751]
[1642441050147,2.66170822,3215.4,3214.6,18.32751]
[1642441050342,0.00341054,3214.8,3214.7,6.3943]
[1642441050540,2.61511876,3215.4,3214.7,6.3943]
[1642441050940,0.00284212,3215.3,3214.7,6.3943]
[1642441051342,0.00227369,3215.2,3214.7,6.3943]
[1642441051542,0.77998369,3215.2,3214.7,6.3943]
[1642441051741,1.28769205,3215.1,3214.7,6.3943]
[1642441052142,0.00113685,3215.0,3214.7,6.3943]
[1642441052443,0.00113685,3215.0,3214.2,4.10960738]
[1642441052647,0.00113685,3215.0,3214.3,0.05173558]
[1642441052843,0.00113685,3215.0,3214.3,0.0545777]
[1642441053043,0.77883685,3215.0,3214.4,0.00227369]
[1642441053243,0.77883685,3215.0,3214.7,1.29711036]
[1642441053686,0.77883685,3215.0,3214.3,0.00284212]
[1642441054289,0.3,3214.9,3214.3,0.00284212]
[1642441054490,1.80548,3214.9,3214.3,0.00284212]
[1642441054691,3.83648,3214.9,3214.3,0.00284212]
[1642441055297,19.55666316,3214.8,3214.3,0.00284212]
[1642441055491,21.11240316,3214.8,3214.3,0.00284212]
[1642441055691,1.0,3214.7,3214.1,0.00397896]
[1642441055890,2.33375,3214.6,3214.1,0.00397896]
[1642441056289,2.63375,3214.6,3214.1,0.00397896]
[1642441056491,0.7779,3214.5,3214.1,0.00397896]
[1642441056890,1.40926101,3214.2,3213.9,0.00511581]
[1642441057092,2.18718101,3214.2,3213.9,0.00511581]
[1642441057291,2.48718101,3214.2,3213.6,0.00682108]
[1642441057563,18.11,3214.1,3213.6,0.00682108]
[1642441057749,18.11,3214.1,3213.4,0.50248936]
[1642441057954,1.55093841,3213.9,3213.4,0.50248936]
[1642441058154,1.55631,3214.0,3213.9,1.54906159]
[1642441058352,5.99467858,3214.0,3213.9,1.54906159]
[1642441058556,1.52413144,3214.0,3213.9,1.54906159]
[1642441060562,20.63413144,3214.0,3213.9,1.54906159]
[1642441060756,21.70691144,3214.0,3213.9,1.54906159]
[1642441060956,5.5,3213.9,3212.7,0.50248936]
[1642441061192,0.77812,3213.4,3212.7,1.77420602]
[1642441061391,1.1378413,3213.3,3212.8,0.00397896]
[1642441061991,0.3,3213.3,3212.8,0.00397896]
[1642441062392,1.07812,3213.4,3212.8,0.00397896]
[1642441064198,1.55635,3213.2,3212.8,0.00397896]
[1642441064399,1.85635,3213.2,3212.8,0.00397896]
[1642441064598,1.85635,3213.2,3212.4,0.00625265]
[1642441065036,1.85635,3213.2,3212.6,1.28829673]
[1642441065441,1.85635,3213.2,3212.7,0.00454738]
[1642441066945,0.77819,3213.1,3212.7,0.00454738]
[1642441067144,0.77819,3213.1,3212.3,6.6214]
[1642441067145,0.77819,3213.1,3212.4,0.00625265]
[1642441067543,18.88819,3213.1,3212.4,0.00625265]
[1642441068044,1.13072684,3212.6,3212.4,3.10625265]
[1642441068249,1.90904684,3212.6,3212.4,3.10625265]
[1642441068449,1.90904684,3212.6,3212.5,0.00568423]
[1642441068893,1.90904684,3212.6,3211.7,3.1993444]
[1642441069094,1.90904684,3212.6,3211.6,4.02263659]
[1642441069294,1.90904684,3212.6,3211.8,0.00397896]
[1642441069295,1.55688,3212.4,3211.8,0.00397896]
[1642441069493,0.77839,3212.3,3211.8,0.00397896]
[1642441069696,1.55676,3212.3,3211.8,0.00397896]
[1642441070094,1.55676,3212.3,3211.6,0.00511581]
[1642441070497,1.4092155,3212.1,3211.6,0.00511581]
[1642441070698,18.88846,3211.9,3211.6,0.00511581]
[1642441070897,0.77846,3211.9,3211.4,0.00625266]
[1642441071103,0.77846,3211.9,3211.4,0.01868884]
[1642441071496,0.77846,3211.9,3211.5,0.00568423]
[1642441071895,0.77846,3211.9,3211.6,1.3882045]
[1642441072096,0.27143,3212.6,3211.5,0.00568423]
[1642441072297,0.77836,3212.3,3211.7,0.00454739]
[1642441072545,0.77836,3212.3,3211.4,2.32107797]
[1642441072546,0.77846,3212.2,3211.5,0.00568423]
[1642441073147,0.77846,3212.2,3211.1,0.00795793]
[1642441073350,2.33543,3212.2,3211.0,0.00852635]
[1642441073754,2.33543,3212.2,3211.5,2.37644723]
[1642441073755,2.66347545,3212.1,3211.5,2.37644723]
[1642441073953,0.77848,3211.8,3211.5,2.37644723]
[1642441074150,0.77848,3211.8,3211.6,1.56401628]
[1642441074351,2.66347545,3212.1,3211.7,0.0611881]
[1642441074549,2.66347545,3212.1,3211.7,0.06573549]
[1642441074949,2.33546,3212.4,3211.7,0.06573549]
[1642441075151,2.33546,3212.4,3212.1,1.50678363]
[1642441075351,2.33546,3212.4,3211.7,5.99614739]
[1642441075551,1.55674,3212.2,3211.7,5.9916]
[1642441076199,1.55674,3212.2,3211.6,4.03699886]
[1642441076401,1.55674,3212.2,3211.6,2.67644723]
[1642441076598,1.55674,3212.2,3211.7,0.00454739]
[1642441076798,1.55699,3212.0,3211.7,0.00454739]
[1642441076998,2.33546,3211.9,3211.7,0.00454739]
[1642441077400,1.23951828,3211.8,3211.7,0.00454739]
[1642441077898,1.23951828,3211.8,3211.3,3.19112893]
[1642441078299,1.23951828,3211.8,3211.4,2.39892215]
[1642441078698,2.01819828,3211.8,3211.5,0.00113684]
[1642441079402,18.11,3211.7,3211.5,0.00113684]
[1642441079601,18.11,3211.7,3211.4,2.39721688]
[1642441079602,0.77871,3211.6,3211.4,2.39721688]
[1642441079801,0.77871,3211.6,3211.1,3.19112893]
[1642441080246,0.77871,3211.6,3211.2,0.00170528]
[1642441080641,0.77871,3211.6,3210.4,0.00625266]
[1642441080945,3.11478,3211.6,3210.4,0.78477266]
[1642441081141,0.77871,3211.7,3210.4,0.78477266]
[1642441081341,0.77871,3211.7,3211.3,1.37321567]
[1642441081844,0.3,3211.6,3211.3,1.37321567]
[1642441082240,1.07852,3211.6,3211.3,1.37321567]
[1642441082843,0.3,3211.6,3211.3,1.37321567]
[1642441083544,2.66361951,3211.5,3211.3,1.37321567]
[1642441084795,2.66361951,3211.5,3211.0,1.3]
[1642441084995,3.44218951,3211.5,3211.0,0.3]
[1642441085194,3.44218951,3211.5,3211.1,0.0022737]
[1642441085497,3.44218951,3211.5,3210.9,3.19453948]
[1642441085498,4.22073951,3211.5,3210.9,3.19453948]
[1642441085694,4.22073951,3211.5,3211.3,1.12437613]
[1642441085894,4.22073951,3211.5,3211.0,1.00284212]
[1642441086296,3.44218951,3211.5,3211.1,0.04876075]
[1642441086494,3.44218951,3211.5,3211.1,0.0022737]
[1642441086703,2.66361951,3211.4,3211.1,0.0022737]
[1642441086893,2.66361951,3211.4,3210.6,3.19112893]
[1642441086894,2.66361951,3211.4,3211.0,0.00284212]
[1642441087094,2.66361951,3211.4,3211.1,1.23929029]
[1642441087294,2.66361951,3211.4,3211.1,1.53929029]
[1642441087538,2.66361951,3211.4,3211.1,1.23929029]
[1642441087741,2.66361951,3211.4,3211.1,1.53929029]
[1642441089350,2.66361951,3211.4,3211.1,2.31763029]
[1642441089744,2.66361951,3211.4,3211.1,3.09588409]
[1642441089947,2.66361951,3211.4,3211.1,1.53929029]
[1642441090345,0.77841,3211.8,3211.1,1.53929029]
[1642441090544,1.07841,3211.8,3211.1,1.53929029]
[1642441090744,0.00113684,3211.7,3211.1,1.53929029]
[1642441091790,2.66475635,3211.7,3211.1,1.53929029]
[1642441094506,2.66475635,3211.7,3211.2,1.20045421]
[1642441094798,2.66475635,3211.7,3211.3,0.00113685]
[1642441095852,3.44319635,3211.7,3211.3,0.00113685]
[1642441096455,0.3,3211.6,3211.3,0.00113685]
[1642441096653,0.77957684,3211.7,3211.3,0.00113685]
[1642441096851,0.77957684,3211.7,3211.1,0.0022737]
[1642441097452,0.77957684,3211.7,3211.3,1.41340295]
[1642441097654,2.66361951,3211.5,3211.3,1.41340295]
[1642441097853,2.66361951,3211.5,3211.3,1.71340295]
[1642441098800,0.00113684,3211.7,3211.4,0.449]
[1642441099004,0.00113684,3211.7,3211.5,0.05522384]
[1642441099200,3.82343684,3212.5,3212.1,0.06484411]
[1642441099400,6.07507943,3212.7,3212.1,0.06484411]
[1642441099604,0.00397897,3212.4,3212.0,2.90041227]
[1642441099801,0.00397897,3212.4,3212.1,1.0]
[1642441100001,0.00341054,3212.3,3212.1,1.0]
[1642441100403,0.00284212,3212.2,3212.1,1.0]
[1642441102211,0.00284212,3212.2,3212.0,0.3]
[1642441102650,0.0022737,3212.1,3211.8,4.49112893]
[1642441102849,0.0022737,3212.1,3211.8,5.9708714]
[1642441103049,0.00170527,3212.0,3211.8,5.9708714]
[1642441103449,0.00113685,3211.9,3211.8,4.06603779]
[1642441103853,0.00113685,3211.9,3211.8,6.93629532]
[1642441104455,0.72942685,3212.4,3211.8,1.3]
[1642441104858,0.00227369,3212.3,3211.8,1.3]
[1642441105255,0.00170527,3212.2,3211.8,1.3]
[1642441105655,0.00113685,3212.1,3211.8,1.3]
[1642441106694,0.00113685,3212.1,3211.8,4.49112893]
[1642441107505,0.00113685,3212.1,3211.8,3.19112893]
[1642441107698,6.15701,3212.0,3211.3,3.97867545]
[1642441108101,6.15701,3212.0,3211.4,0.00284212]
[1642441108102,1.55701,3212.0,3211.4,0.00284212]
[1642441108297,0.00113685,3212.1,3211.4,0.00284212]
[1642441108498,0.77862,3211.9,3211.8,3.1]
[1642441108697,1.90547528,3211.9,3211.8,3.1]
[1642441108898,1.80547528,3211.9,3211.8,3.1]
[1642441109299,0.67862,3211.9,3211.8,3.1]
[1642441110441,3.3422471,3211.9,3211.8,3.1]
[1642441112249,3.2422471,3211.9,3211.8,3.1]
[1642441112858,15.6422471,3211.9,3211.8,3.1]
[1642441113154,10.55,3211.8,3211.4,0.00284212]
[1642441113353,14.42664384,3211.8,3211.4,0.00284212]
[1642441113552,1.25313184,3210.9,3210.8,0.00625266]
[1642441114009,1.14872513,3211.0,3210.8,0.00625266]
[1642441114208,1.14872513,3211.0,3210.6,0.00738951]
[1642441114810,1.92740513,3211.0,3210.6,0.00738951]
[1642441115611,1.92740513,3211.0,3210.3,1.00909478]
[1642441115811,1.16884085,3210.5,3210.3,0.00909478]
[1642441116007,1.16884085,3210.5,3210.4,0.00852635]
[1642441116211,1.16884085,3210.5,3210.3,0.00909478]
[1642441116411,1.98844085,3210.5,3210.3,0.00909478]
[1642441116607,1.98844085,3210.5,3210.1,0.01023162]
[1642441118147,1.98844085,3210.5,3210.0,0.001]
[1642441118148,0.01220823,3210.2,3210.0,0.001]
[1642441118639,0.45070527,3210.4,3210.0,0.001]
[1642441118843,0.00170527,3210.4,3210.0,0.001]
[1642441119042,0.00113684,3210.3,3210.0,0.001]
[1642441119343,1.5976,3210.8,3210.0,0.001]
[1642441119344,0.00170527,3210.4,3210.0,0.001]
[1642441119744,2.66522729,3210.1,3210.0,3.101]
[1642441120043,2.66522729,3210.1,3210.0,5.61780039]
[1642441120647,2.66522729,3210.1,3210.0,4.401]
[1642441120843,0.78214054,3210.7,3210.0,4.401]
[1642441121045,0.78214054,3210.7,3210.1,1.0]
[1642441121289,0.00284211,3210.6,3210.1,1.0]
[1642441121692,0.00227369,3210.5,3210.0,3.101]
[1642441122089,0.77873,3210.7,3210.2,0.05051743]
[1642441122090,0.00170527,3210.4,3210.2,0.05051743]
[1642441122292,0.00170527,3210.4,3210.1,1.0]
[1642441122491,0.00113684,3210.3,3210.1,1.0]
[1642441122891,0.00284211,3210.6,3210.1,1.0]
[1642441123295,0.00227369,3210.5,3210.1,1.0]
[1642441123691,0.00170527,3210.4,3210.1,1.0]
[1642441124096,0.00113684,3210.3,3210.1,1.0]
[1642441124395,0.00284211,3210.6,3210.1,1.0]
[1642441124597,0.00284211,3210.6,3210.0,3.101]
[1642441124796,0.00227369,3210.5,3210.0,3.101]
[1642441125248,0.00170527,3210.4,3210.0,3.101]
[1642441125648,0.00113684,3210.3,3210.0,3.101]
[1642441126051,0.00227369,3210.5,3210.0,3.101]
[1642441126451,0.00170527,3210.4,3210.0,3.101]
[1642441126851,0.00113684,3210.3,3210.1,1.16428737]
[1642441127052,0.00113684,3210.3,3210.1,3.54713019]
[1642441127252,0.00227369,3210.5,3210.1,3.54713019]
[1642441127453,0.00227369,3210.5,3210.2,0.04652442]
[1642441127653,0.00170527,3210.4,3210.2,0.04652442]
[1642441127853,0.00170527,3210.4,3210.1,3.54713019]
[1642441128053,3.99716813,3211.4,3210.3,20.1]
[1642441128254,5.58219,3211.8,3210.4,0.54411579]
[1642441128461,0.00511581,3211.2,3210.4,6.53662408]
[1642441128697,0.00511581,3211.2,3210.5,0.07651145]
[1642441128895,0.00454739,3211.1,3210.6,0.449]
[1642441129095,0.00454739,3211.1,3210.6,0.749]
[1642441129294,0.00397897,3211.0,3210.7,1.35193487]
[1642441129495,0.00397897,3211.0,3210.8,0.449]
[1642441129696,0.00341054,3210.9,3210.8,2.0057861]
[1642441129898,2.66414224,3211.7,3211.3,1.39902867]
[1642441130097,2.66414224,3211.7,3211.4,0.0879495]
[1642441130297,0.00397897,3211.6,3211.4,0.0879495]
[1642441130596,0.00341055,3211.5,3211.4,0.0879495]
[1642441130801,0.00341055,3211.5,3211.3,0.749]
[1642441131003,0.00341055,3211.5,3211.4,21.44645005]
[1642441131198,0.77832,3212.5,3211.4,21.44645005]
[1642441131406,0.77832,3212.5,3211.4,22.44645005]
[1642441131598,0.00852636,3212.4,3211.5,1.0]
[1642441131797,0.00852636,3212.4,3211.6,0.04679813]
[1642441131999,0.00795793,3212.3,3211.5,1.3]
[1642441132446,0.00738951,3212.2,3212.1,7.96045972]
[1642441132646,0.00738951,3212.2,3212.1,10.04615972]
[1642441132845,2.66363892,3212.4,3212.2,11.95]
[1642441133046,2.66363892,3212.4,3212.3,17.2]
[1642441133248,3.1273806,3213.4,3212.4,18.6]
[1642441133446,3.1273806,3213.4,3212.5,0.449]
[1642441133649,3.1273806,3213.4,3212.5,1.449]
[1642441133851,3.1273806,3213.4,3212.6,1.55568]
[1642441134050,3.1273806,3213.4,3212.8,1.44545384]
[1642441134252,3.1273806,3213.4,3212.9,10.92217813]
[1642441134454,7.7741,3213.7,3212.9,10.92217813]
[1642441134455,1.58502187,3213.3,3213.0,0.05805346]
[1642441134651,1.58502187,3213.3,3213.0,1.50705346]
[1642441134851,1.58502187,3213.3,3213.1,3.14505977]
[1642441135050,1.58502187,3213.3,3213.2,1.0]
[1642441135453,1.58502187,3213.3,3212.7,1.0]
[1642441135454,1.41214034,3212.9,3212.7,1.0]
[1642441135652,1.41214034,3212.9,3212.6,0.449]
[1642441135852,1.41214034,3212.9,3212.2,1.1285]
[1642441135853,0.00341054,3212.8,3212.2,1.1285]
[1642441136053,0.00341054,3212.8,3212.1,1.067314]
[1642441136054,0.30341054,3212.8,3212.1,1.067314]
[1642441136309,0.00284212,3212.7,3212.1,1.067314]
[1642441136509,1.55951212,3212.7,3212.1,1.067314]
[1642441136706,0.00227369,3212.6,3212.1,1.067314]
[1642441136905,1.12524361,3212.3,3212.1,1.067314]
[1642441137106,1.30605848,3212.2,3212.1,1.067314]
[1642441137305,1.42524361,3212.3,3212.1,1.067314]
[1642441137507,1.42524361,3212.3,3211.5,2.97477802]
[1642441137711,1.42524361,3212.3,3211.5,1.5564615]
[1642441137907,1.12524361,3212.3,3211.6,0.00341054]
[1642441138509,1.12524361,3212.3,3211.6,0.78167054]
[1642441138708,1.12524361,3212.3,3211.6,1.08167054]
[1642441138914,1.12524361,3212.3,3211.7,0.00284212]
[1642441139109,1.12524361,3212.3,3211.7,0.30284212]
[1642441139509,1.12524361,3212.3,3211.8,0.00227369]
[1642441139940,1.16886343,3212.1,3211.7,1.00284212]
[1642441140347,1.16886343,3212.1,3211.8,0.00227369]
[1642441140554,0.3,3212.0,3211.8,0.00227369]